bitfinex/quotes_BTCUSD_20260307
["timestamp","ask_amount","ask_price","bid_price","bid_amount"]
[1772900797325,0.07373434,67811.0,67803.0,0.0002]
[1772900798181,0.07373009,67815.0,67804.0,0.01032333]
[1772900798374,0.07373108,67816.0,67805.0,0.02408307]
[1772900798619,0.00022001,67817.0,67806.0,0.00884333]
[1772900798798,9.76e-05,67819.0,67809.0,0.02408307]
[1772900799000,9.76e-05,67819.0,67810.0,0.01032333]
[1772900799404,9.76e-05,67819.0,67811.0,0.08257767]
[1772900799586,9.76e-05,67819.0,67812.0,0.00884333]
[1772900801290,9.76e-05,67819.0,67811.0,0.07373434]
[1772900804781,0.00031761,67819.0,67811.0,0.07373434]
[1772900806269,0.07404352,67819.0,67811.0,0.07373434]
[1772900808389,0.00031761,67819.0,67811.0,0.07373434]
[1772900808590,0.07404384,67819.0,67811.0,0.07373434]
[1772900811717,0.07404384,67819.0,67811.0,0.07393434]
[1772900811930,0.07404384,67819.0,67811.0,0.0002]
[1772900824074,0.07404338,67819.0,67811.0,0.0002]
[1772900825964,0.00031761,67819.0,67811.0,0.0002]
[1772900826342,0.07404328,67819.0,67811.0,0.0002]
[1772900828463,0.07404328,67819.0,67810.0,0.00148]
[1772900828464,0.08202316,67819.0,67810.0,0.00148]
[1772900829082,0.00797988,67818.0,67810.0,0.00148]
[1772900829287,0.02761424,67817.0,67803.0,0.0002]
[1772900829461,0.00797988,67814.0,67797.0,0.07409953]
[1772900829799,0.00797988,67810.0,67798.0,0.00148]
[1772900829998,0.00797988,67810.0,67797.0,0.07409953]
[1772900830161,0.00797988,67810.0,67798.0,0.00148]
[1772900830599,0.07373652,67809.0,67798.0,0.07522782]
[1772900830807,0.0817164,67809.0,67798.0,0.07522782]
[1772900831003,0.00797988,67808.0,67798.0,0.07522782]
[1772900832178,0.00797988,67808.0,67798.0,0.00148]
[1772900832373,0.00797988,67808.0,67798.0,0.075228]
[1772900833302,0.07373869,67807.0,67798.0,0.075228]
[1772900833507,0.07373869,67807.0,67798.0,0.075428]
[1772900833888,0.07373652,67809.0,67798.0,0.075428]
[1772900835352,0.00148,67813.0,67798.0,0.075428]
[1772900835504,0.07372673,67818.0,67798.0,0.075428]
[1772900835858,0.07372673,67818.0,67802.0,0.00787017]
[1772900836055,0.07372673,67818.0,67803.0,0.00787017]
[1772900836209,0.07372673,67818.0,67804.0,0.00935017]
[1772900836210,0.07520673,67818.0,67804.0,0.00935017]
[1772900836603,0.07372673,67818.0,67804.0,0.00935017]
[1772900837000,0.00797988,67815.0,67804.0,0.00148]
[1772900837200,0.00797988,67813.0,67804.0,0.00148]
[1772900837438,0.08171314,67812.0,67804.0,0.00148]
[1772900837655,0.00797988,67811.0,67804.0,0.00148]
[1772900838144,0.00797988,67811.0,67801.0,0.07374494]
[1772900838145,0.00797988,67811.0,67803.0,0.07374304]
[1772900838353,0.00797988,67811.0,67804.0,0.00148]
[1772900838738,0.00797988,67811.0,67805.0,0.00148]
[1772900839114,0.00797988,67811.0,67801.0,0.07374494]
[1772900839307,0.00797988,67811.0,67802.0,0.00148]
[1772900840268,0.0737351,67811.0,67795.0,0.0002]
[1772900840493,0.0737351,67811.0,67804.0,0.0002]
[1772900840494,0.00797988,67810.0,67804.0,0.0002]
[1772900840974,0.00797988,67810.0,67797.0,0.07409884]
[1772900842165,0.0817164,67809.0,67797.0,0.07409884]
[1772900842564,0.00797988,67808.0,67797.0,0.07409884]
[1772900849754,0.07373869,67807.0,67797.0,0.07409884]
[1772900849936,0.00797988,67806.0,67797.0,0.00035]
[1772900851356,0.00797988,67806.0,67797.0,0.07409936]
[1772900851877,0.07374087,67805.0,67797.0,0.07409936]
[1772900853084,0.07374087,67805.0,67635.0,11.55204869]
[1772900853085,0.00797988,67804.0,67788.0,0.0001361]
[1772900853285,0.00797988,67804.0,67792.0,0.00148]
[1772900853286,0.02636708,67804.0,67792.0,0.00148]
[1772900853482,0.00797988,67802.0,67792.0,0.00148]
[1772900853929,0.07374522,67801.0,67792.0,0.00148]
[1772900854130,0.00797988,67800.0,67792.0,0.00148]
[1772900854667,0.00797988,67800.0,67795.0,0.0002]
[1772900854884,0.07374522,67801.0,67795.0,0.0002]
[1772900856003,0.07374522,67802.0,67795.0,0.0002]
[1772900859184,0.00797988,67803.0,67795.0,0.0002]
[1772900859400,0.07522207,67804.0,67796.0,0.02828775]
[1772900859650,0.07374207,67804.0,67795.0,0.0002]
[1772900860749,0.07374093,67805.0,67795.0,0.0002]
[1772900864081,0.07374093,67805.0,67796.0,0.00835534]
[1772900864237,0.07374093,67805.0,67796.0,0.03664309]
[1772900866407,0.07374087,67807.0,67796.0,0.11039268]
[1772900868263,0.07374087,67807.0,67796.0,0.07374959]
[1772900868469,0.00786813,67806.0,67795.0,0.0002]
[1772900869116,0.00022001,67805.0,67795.0,0.0002]
[1772900873254,0.07374196,67804.0,67795.0,0.0002]
[1772900875207,0.07374196,67804.0,67795.0,0.07395175]
[1772900877217,0.07396109,67805.0,67795.0,0.07395175]
[1772900877533,0.07396109,67805.0,67795.0,0.08230709]
[1772900878162,0.00022001,67804.0,67795.0,0.08230709]
[1772900880784,0.07396206,67804.0,67795.0,0.08230709]
[1772900883098,0.07396239,67804.0,67795.0,0.08230709]
[1772900884340,0.07396239,67804.0,67795.0,0.07395175]
[1772900886434,0.00727602,67803.0,67795.0,0.0002]
[1772900886637,0.00727602,67803.0,67793.0,0.07395384]
[1772900886638,0.02512101,67803.0,67793.0,0.07395384]
[1772900886784,0.00727602,67802.0,67793.0,0.07395384]
[1772900887403,0.00719785,67802.0,67793.0,0.07395384]
[1772900888321,0.00740742,67801.0,67793.0,0.07395384]
[1772900891408,0.07374563,67801.0,67792.0,0.00148]
[1772900891608,0.00740742,67800.0,67791.0,0.0002]
[1772900891998,0.00740742,67800.0,67791.0,0.00168]
[1772900892406,0.00740742,67800.0,67789.0,0.0002]
[1772900892610,0.00740742,67797.0,67789.0,0.0002]
[1772900893518,0.00740742,67797.0,67793.0,0.0002]
[1772900893693,0.00751374,67797.0,67793.0,0.0002]
[1772900894681,0.00740742,67795.0,67793.0,0.0002]
[1772900895108,0.00732924,67795.0,67789.0,0.0002]
[1772900896834,0.07375283,67794.0,67789.0,0.0002]
[1772900897037,0.00740742,67793.0,67789.0,0.0002]
[1772900897219,0.07375066,67796.0,67789.0,0.0002]
[1772900898290,0.00022001,67804.0,67790.0,0.02520211]
[1772900898443,0.07373689,67809.0,67789.0,0.0002]
[1772900898644,0.07373689,67809.0,67793.0,0.02520211]
[1772900898843,0.07373689,67809.0,67796.0,0.00709736]
[1772900899224,0.07373579,67810.0,67796.0,0.00709736]
[1772900900577,0.00022001,67804.0,67796.0,0.00709736]
[1772900900787,0.00022001,67804.0,67794.0,0.07523175]
[1772900901080,0.00740742,67802.0,67795.0,0.00148]
[1772900901422,0.07374304,67803.0,67793.0,0.07375331]
[1772900901803,0.07374304,67803.0,67796.0,0.00148]
[1772900905311,0.07474304,67803.0,67796.0,0.00148]
[1772900905476,0.07374304,67803.0,67796.0,0.00148]
[1772900911653,0.00888742,67802.0,67789.0,0.0740049]
[1772900912023,0.00740742,67802.0,67789.0,0.0740049]
[1772900912751,0.00888742,67802.0,67789.0,0.0740049]
[1772900913209,0.02501268,67801.0,67789.0,0.00024731]
[1772900913411,0.0737474,67799.0,67789.0,0.00024731]
[1772900913709,0.00740742,67798.0,67789.0,0.00024731]
[1772900915669,0.00740742,67796.0,67789.0,0.00024731]
[1772900917636,0.00740742,67796.0,67786.0,0.00168]
[1772900917637,0.00740742,67794.0,67786.0,0.00168]
[1772900917837,0.00740742,67794.0,67784.0,0.07544339]
[1772900917838,0.00746653,67794.0,67784.0,0.07544339]
[1772900918556,0.00746653,67794.0,67784.0,0.07396339]
[1772900919678,0.00746653,67794.0,67784.0,0.0002]
[1772900919679,0.07375392,67793.0,67784.0,0.0002]
[1772900919980,0.00747263,67792.0,67784.0,0.00168]
[1772900920177,0.00747263,67792.0,67784.0,0.0002]
[1772900920381,0.00747263,67792.0,67784.0,0.00168]
[1772900920739,0.00747263,67792.0,67784.0,0.0002]
[1772900921163,0.00747263,67792.0,67789.0,0.0002]
[1772900921789,0.00747263,67791.0,67789.0,0.0002]
[1772900923231,0.07375719,67790.0,67784.0,0.0002]
[1772900923855,0.00747263,67789.0,67777.0,0.07377052]
[1772900924768,0.00731812,67789.0,67777.0,0.07377052]
[1772900925520,0.07375936,67788.0,67777.0,0.07377052]
[1772900925851,0.00747263,67787.0,67777.0,0.07377052]
[1772900927739,0.07376154,67786.0,67777.0,0.07377052]
[1772900928656,0.07376154,67786.0,67776.0,0.00148]
[1772900928860,0.07376154,67786.0,67774.0,0.0001217]
[1772900928861,0.00747263,67783.0,67774.0,0.0001217]
[1772900929065,0.00747263,67783.0,67774.0,0.07389559]
[1772900929474,0.00747263,67783.0,67774.0,0.0001217]
[1772900929676,0.00747263,67783.0,67772.0,0.0002]
[1772900929876,0.00747263,67781.0,67772.0,0.0002]
[1772900930276,0.07376589,67783.0,67772.0,0.0002]
[1772900930476,0.07376589,67783.0,67775.0,0.0076835]
[1772900930874,0.07375716,67791.0,67772.0,0.0002]
[1772900930875,0.0001489,67787.0,67776.0,0.02408645]
[1772900931081,0.07375537,67792.0,67780.0,0.02408645]
[1772900931082,0.0737551,67792.0,67780.0,0.02408645]
[1772900931302,0.0737551,67792.0,67783.0,0.0076835]
[1772900932012,0.0737551,67792.0,67783.0,0.08144824]
[1772900933293,5.911e-05,67794.0,67783.0,0.08144824]
[1772900933486,0.00148,67793.0,67783.0,0.08144824]
[1772900933829,5.911e-05,67794.0,67783.0,0.08144824]
[1772900934008,0.00148,67793.0,67783.0,0.08144824]
[1772900934323,5.911e-05,67794.0,67783.0,0.08144824]
[1772900934742,0.00148,67793.0,67783.0,0.08144824]
[1772900935125,5.911e-05,67794.0,67783.0,0.07396474]
[1772900935310,5.911e-05,67794.0,67787.0,0.08144329]
[1772900940833,0.0004,67800.0,67788.0,0.00148]
[1772900941058,0.0004,67800.0,67789.0,0.02476303]
[1772900941253,0.0004,67800.0,67791.0,0.00737862]
[1772900942084,0.07414632,67800.0,67788.0,0.00158632]
[1772900942486,0.07414632,67800.0,67788.0,0.00896494]
[1772900942692,2.079e-05,67794.0,67789.0,0.08113689]
[1772900943060,2.079e-05,67794.0,67789.0,0.07375827]
[1772900943261,2.079e-05,67794.0,67790.0,0.00737862]
[1772900944689,2.079e-05,67794.0,67791.0,0.0737561]
[1772900947286,2.079e-05,67794.0,67791.0,0.08113472]
[1772900948246,0.00022001,67801.0,67792.0,0.02476813]
[1772900948434,6.55e-05,67801.0,67792.0,0.00750683]
[1772900948634,6.55e-05,67801.0,67791.0,0.0737561]
[1772900949146,6.55e-05,67801.0,67790.0,0.0737561]
[1772900949354,6.55e-05,67801.0,67791.0,0.00148]
[1772900949748,6.55e-05,67801.0,67790.0,0.0737561]
[1772900949979,6.55e-05,67801.0,67791.0,0.00148]
[1772900950355,6.55e-05,67801.0,67792.0,0.00148]
[1772900950682,0.00730093,67800.0,67790.0,0.00148]
[1772900951545,0.0810483,67800.0,67789.0,0.00148]
[1772900954066,0.08104744,67800.0,67790.0,0.07375719]
[1772900956987,0.08104744,67800.0,67790.0,0.07395719]
[1772900957227,0.08126745,67800.0,67790.0,0.07395719]
[1772900958698,0.08126745,67800.0,67790.0,0.0002]
[1772900958913,0.00730093,67797.0,67790.0,0.0002]
[1772900961178,0.07396636,67800.0,67790.0,0.0002]
[1772900961385,0.07396636,67800.0,67792.0,0.03227496]
[1772900961386,0.00022001,67800.0,67792.0,0.03227496]
[1772900961562,0.00022001,67800.0,67792.0,0.00750683]
[1772900963274,0.00022001,67800.0,67792.0,0.08126129]
[1772900965394,6.552e-05,67800.0,67792.0,0.08126129]
[1772900972335,0.07372066,67802.0,67792.0,0.08126129]
[1772900972550,0.00022001,67801.0,67792.0,0.08126129]
[1772900973476,0.07396592,67801.0,67792.0,0.08126129]
[1772900975475,0.00022001,67801.0,67792.0,0.07375446]
[1772900976384,0.07396525,67801.0,67792.0,0.07375446]
[1772900977774,0.07396525,67801.0,67791.0,0.07375544]
[1772900978647,0.00650212,67800.0,67791.0,0.07375544]
[1772900978891,0.00650212,67800.0,67790.0,0.07395648]
[1772900979903,0.00650212,67800.0,67776.0,0.00719879]
[1772900979904,0.02429556,67797.0,67776.0,0.00719879]
[1772900980050,0.00650212,67794.0,67776.0,0.00719879]
[1772900980258,4.731e-05,67797.0,67776.0,0.00719879]
[1772900980259,0.02429556,67793.0,67781.0,0.07524666]
[1772900980553,0.00650212,67792.0,67782.0,0.00148]
[1772900980754,0.02429556,67791.0,67777.0,0.07377133]
[1772900980961,0.00650212,67789.0,67777.0,0.07377133]
[1772900981586,0.00148,67792.0,67778.0,0.00148]
[1772900981587,0.00650212,67788.0,67778.0,0.00148]
[1772900981783,0.07375719,67790.0,67776.0,0.0002]
[1772900981982,0.07375719,67790.0,67775.0,0.0004]
[1772900981983,0.14711528,67789.0,67775.0,0.0004]
[1772900982293,0.11728853,67790.0,67775.0,0.0004]
[1772900982492,0.02429556,67789.0,67775.0,0.0004]
[1772900982714,0.02429556,67787.0,67775.0,0.0004]
[1772900982923,0.00650212,67784.0,67775.0,0.0004]
[1772900983100,0.00650212,67783.0,67775.0,0.0004]
[1772900984089,0.08026801,67782.0,67775.0,0.0004]
[1772900985065,0.00650212,67781.0,67777.0,0.0002]
[1772900986028,0.00650212,67779.0,67777.0,0.0002]
[1772900986360,0.00650212,67779.0,67773.0,0.0001762]
[1772900986768,0.00650212,67779.0,67773.0,0.07395173]
[1772900987718,0.00650212,67779.0,67773.0,0.0001762]
[1772900988736,0.07376703,67781.0,67773.0,0.0001762]
[1772900988939,0.08026915,67781.0,67773.0,0.0001762]
[1772900989739,0.00650212,67780.0,67773.0,0.0001762]
[1772900990112,0.07376842,67780.0,67773.0,0.0001762]
[1772900990265,0.02429556,67779.0,67770.0,0.0002]
[1772900990465,0.00650212,67778.0,67770.0,0.0002]
[1772900991366,0.00650212,67778.0,67770.0,0.000571]
[1772900991989,0.5,67773.0,67770.0,0.000571]
[1772900992191,0.00650212,67771.0,67763.0,0.07561624]
[1772900992525,0.0051896,67771.0,67763.0,0.07561624]
[1772900992693,0.57362221,67773.0,67763.0,0.07561624]
[1772900992917,0.49984543,67773.0,67763.0,0.07561624]
[1772900993072,0.49984543,67773.0,67763.0,0.08301565]
[1772900993574,0.49984543,67773.0,67766.0,0.0002]
[1772900993896,0.16186683,67773.0,67767.0,0.00699879]
[1772900994102,0.07397976,67788.0,67770.0,0.07377895]
[1772900994304,0.07397976,67788.0,67771.0,0.00847879]
[1772900994500,0.07397976,67788.0,67772.0,0.00148]
[1772900994873,0.07397976,67788.0,67769.0,0.07377895]
[1772900995215,0.07397976,67788.0,67771.0,0.00148]
[1772900995402,0.07397976,67788.0,67769.0,0.07377895]
[1772900995403,0.02485888,67785.0,67769.0,0.07377895]
[1772900995719,0.00650212,67782.0,67771.0,0.00148]
[1772900996490,0.07376698,67781.0,67771.0,0.00148]
[1772900997480,0.02485888,67779.0,67771.0,0.00148]
[1772900997665,0.031361,67779.0,67771.0,0.00148]
[1772900997873,0.031361,67779.0,67766.0,0.08098101]
[1772900998075,0.031361,67779.0,67767.0,0.00148]
[1772900998435,0.07377024,67778.0,67768.0,0.07378113]
[1772900998635,0.07377024,67778.0,67767.0,0.0752614]
[1772900998835,0.03079768,67777.0,67767.0,0.0752614]
[1772901000778,0.07377242,67776.0,67766.0,0.0002]
[1772901000956,0.07377242,67776.0,67761.0,0.00717199]
[1772901000957,0.00148,67775.0,67762.0,0.00148]
[1772901001123,0.00148,67775.0,67764.0,0.0002]
[1772901001321,0.00148,67775.0,67762.0,0.00012036]
[1772901001508,0.00731974,67773.0,67762.0,0.00012036]
[1772901001709,0.03298015,67772.0,67762.0,0.00012036]
[1772901002716,0.07377786,67771.0,67762.0,0.00012036]
[1772901002942,0.53776092,67800.0,67762.0,0.00012036]
[1772901003146,0.07376405,67784.0,67766.0,0.00752765]
[1772901003391,0.07376405,67784.0,67768.0,0.00752765]
[1772901003554,0.07376405,67784.0,67771.0,0.02411317]
[1772901003735,0.07376405,67784.0,67772.0,0.00752765]
[1772901003933,0.07376405,67784.0,67771.0,0.02411317]
[1772901003934,0.07376405,67784.0,67774.0,0.00752765]
[1772901004793,0.07376405,67784.0,67780.0,0.00015]
[1772901004970,0.07376503,67783.0,67780.0,0.00015]
[1772901005174,0.07398606,67782.0,67780.0,0.00015]
[1772901005949,0.00022001,67782.0,67780.0,0.00015]
[1772901007780,0.00022001,67788.0,67781.0,0.00752765]
[1772901008990,0.00022001,67782.0,67781.0,0.08129463]
[1772901009197,0.00022001,67795.0,67782.0,0.00725518]
[1772901009469,0.07414689,67800.0,67786.0,0.02411317]
[1772901009678,0.0004,67800.0,67788.0,0.00725518]
[1772901010242,0.0004,67800.0,67788.0,0.02411317]
[1772901010453,0.0004,67800.0,67789.0,0.00725518]
[1772901010689,0.07454793,67800.0,67789.0,0.00725518]
[1772901010891,0.07454793,67800.0,67787.0,0.00148]
[1772901011102,0.03192911,67799.0,67787.0,0.07523936]
[1772901011303,0.00711315,67799.0,67787.0,0.07523936]
[1772901011554,0.00711315,67799.0,67788.0,0.001]
[1772901011770,0.00711315,67799.0,67784.0,0.00725518]
[1772901011771,0.02481596,67798.0,67781.0,0.07376698]
[1772901011942,0.00711315,67795.0,67781.0,0.07376698]
[1772901012084,0.00711315,67795.0,67780.0,0.07391698]
[1772901012085,0.00711315,67791.0,67780.0,0.00015]
[1772901012288,0.02481596,67788.0,67774.0,0.07377453]
[1772901012489,0.02481596,67788.0,67775.0,0.00148]
[1772901012490,0.00711315,67787.0,67775.0,0.00148]
[1772901012896,0.00711315,67787.0,67776.0,0.00148]
[1772901013679,0.07376154,67786.0,67775.0,0.001]
[1772901013846,0.00711315,67787.0,67777.0,0.00148]
[1772901016608,0.02481596,67787.0,67778.0,0.07377024]
[1772901016814,0.00711315,67786.0,67778.0,0.07377024]
[1772901018116,0.00711315,67786.0,67779.0,0.00148]
[1772901018298,0.00022001,67787.0,67779.0,0.00148]
[1772901018976,0.08109368,67787.0,67779.0,0.07524848]
[1772901020527,0.00733316,67787.0,67779.0,0.07524848]
[1772901021959,0.00711315,67786.0,67779.0,0.07524874]
[1772901023528,0.00711315,67786.0,67779.0,0.07544874]
[1772901025945,0.00711315,67786.0,67780.0,0.00148]
[1772901026148,0.00711315,67786.0,67780.0,0.07524781]
[1772901026346,0.00711315,67786.0,67779.0,0.07396874]
[1772901026569,0.00711315,67786.0,67780.0,0.00148]
[1772901026910,0.00711315,67786.0,67779.0,0.07396874]
[1772901027129,0.00711315,67786.0,67780.0,0.00148]
[1772901028907,0.00711315,67786.0,67779.0,0.0002]
[1772901029086,0.00711315,67786.0,67780.0,0.00148]
[1772901030628,0.00711315,67786.0,67781.0,0.07376698]
[1772901037172,0.00711315,67786.0,67780.0,0.00148]
[1772901037173,0.00711315,67786.0,67780.0,0.07524735]
[1772901038079,0.00711315,67786.0,67780.0,0.07544735]
[1772901038289,0.00733316,67786.0,67780.0,0.07544735]
[1772901040906,0.00022001,67786.0,67780.0,0.07544735]
[1772901042781,0.00022001,67786.0,67780.0,0.00168]
[1772901043663,0.00759307,67786.0,67780.0,0.00168]
[1772901044039,0.00759307,67786.0,67780.0,0.07544803]
[1772901046189,0.00759307,67786.0,67774.0,0.0737746]
[1772901046393,0.00759307,67786.0,67777.0,0.00148]
[1772901047367,0.00759307,67786.0,67780.0,0.0002]
[1772901048891,0.00022001,67786.0,67780.0,0.0002]
[1772901051576,0.00759307,67786.0,67780.0,0.0002]
[1772901052937,0.00759307,67786.0,67780.0,0.0002838]
[1772901052938,0.08135481,67786.0,67780.0,0.0002838]
[1772901053149,0.00759307,67786.0,67780.0,0.0002838]
[1772901053997,0.00759307,67786.0,67780.0,0.07405113]
[1772901057955,0.00759307,67786.0,67780.0,0.0002838]
[1772901058570,0.00759307,67786.0,67780.0,0.07405125]
[1772901061695,0.02704021,67785.0,67772.0,0.0002]
[1772901061829,0.14735474,67784.0,67765.0,0.0002]
[1772901062014,0.02021402,67781.0,67768.0,0.00148]
[1772901062215,0.02021402,67781.0,67767.0,0.07390393]
[1772901062216,0.02187526,67777.0,67769.0,0.00148]
[1772901062568,0.00682619,67776.0,67769.0,0.00148]
[1772901063119,0.00682619,67776.0,67768.0,0.07378056]
[1772901063316,0.07377297,67776.0,67769.0,0.00148]
[1772901063520,0.00682619,67775.0,67769.0,0.00148]
[1772901063945,0.00682619,67775.0,67768.0,0.00012036]
[1772901064555,0.00682619,67775.0,67767.0,0.00148]
[1772901064767,0.00682619,67775.0,67767.0,0.00153911]
[1772901064939,0.00682619,67775.0,67767.0,5.911e-05]
[1772901065140,0.00682619,67775.0,67768.0,0.00148]
[1772901065342,0.08059975,67775.0,67768.0,0.00148]
[1772901065968,0.08059975,67775.0,67767.0,5.911e-05]
[1772901066125,0.08059975,67775.0,67768.0,0.00148]
[1772901067465,0.08059975,67775.0,67767.0,5.911e-05]
[1772901067666,0.08059975,67775.0,67768.0,0.00148]
[1772901068505,0.08059975,67775.0,67761.0,0.07378868]
[1772901068506,0.08034437,67771.0,67761.0,0.07378868]
[1772901068706,0.00656651,67771.0,67765.0,0.00148]
[1772901069897,0.00656651,67771.0,67768.0,0.0002]
[1772901070310,0.07377729,67772.0,67768.0,0.0002]
[1772901070656,0.07377515,67774.0,67768.0,0.0002]
[1772901073185,0.00656651,67775.0,67768.0,0.0002]
[1772901075971,0.0737746,67774.0,67768.0,0.0002]
[1772901080217,0.00656651,67773.0,67768.0,0.0002]
[1772901081618,0.0737746,67774.0,67768.0,0.0002]
[1772901081811,0.15392125,67781.0,67768.0,0.0002]
[1772901081812,0.0016296,67779.0,67768.0,0.0002]
[1772901081988,0.07394424,67790.0,67769.0,0.00619672]
[1772901081989,0.00022001,67787.0,67769.0,0.00619672]
[1772901082191,0.00022001,67787.0,67772.0,0.02225005]
[1772901082537,0.00022001,67789.0,67779.0,0.00617264]
[1772901082723,0.00022001,67789.0,67781.0,0.00617264]
[1772901083730,0.00022001,67789.0,67780.0,0.07524762]
[1772901084389,0.00022001,67789.0,67780.0,0.07509762]
[1772901094099,0.07397829,67789.0,67780.0,0.07509762]
[1772901094454,0.00656651,67788.0,67780.0,0.07509762]
[1772901095125,0.00022001,67789.0,67780.0,0.07509762]
[1772901096464,0.07397828,67789.0,67780.0,0.07509762]
[1772901097064,0.01942655,67787.0,67774.0,0.00148]
[1772901097264,0.00656651,67784.0,67768.0,0.07398004]
[1772901097486,0.00656651,67782.0,67769.0,0.00148]
[1772901097982,0.00656651,67782.0,67768.0,0.07398004]
[1772901098180,0.00656651,67782.0,67769.0,0.00148]
[1772901099047,0.08072254,67781.0,67769.0,0.00148]
[1772901099220,0.08072254,67781.0,67768.0,0.0739807]
[1772901099427,0.00695556,67780.0,67769.0,0.00148]
[1772901099623,0.00695556,67780.0,67770.0,0.00148]
[1772901099853,0.00695556,67779.0,67770.0,0.00148]
[1772901100008,0.00695556,67779.0,67768.0,0.0739807]
[1772901100009,0.00695556,67779.0,67768.0,0.0002]
[1772901100215,0.01942655,67776.0,67766.0,0.00148]
[1772901100429,0.01942655,67774.0,67766.0,0.00148]
[1772901100759,0.00695556,67773.0,67766.0,0.00148]
[1772901100991,0.07377678,67772.0,67766.0,0.00148]
[1772901101280,0.07377678,67772.0,67765.0,0.0002]
[1772901101281,0.00695556,67770.0,67765.0,0.0002]
[1772901101436,0.01942655,67769.0,67762.0,0.00148]
[1772901101625,0.00695556,67768.0,67762.0,0.00148]
[1772901102245,0.00695556,67768.0,67762.0,0.00168]
[1772901103857,0.00695556,67768.0,67762.0,0.0002]
[1772901104473,0.07377585,67773.0,67763.0,0.00593572]
[1772901105235,0.07377519,67774.0,67763.0,0.00593572]
[1772901107200,0.07377351,67776.0,67763.0,0.00593572]
[1772901107517,0.07525351,67776.0,67763.0,0.00593572]
[1772901108233,0.07525351,67776.0,67763.0,0.0797221]
[1772901108433,0.07377351,67776.0,67763.0,0.0797221]
[1772901108929,0.07525351,67776.0,67763.0,0.0797221]
[1772901109134,0.08220907,67776.0,67763.0,0.0797221]
[1772901109330,0.08220907,67776.0,67763.0,0.0799221]
[1772901109552,0.07525351,67776.0,67764.0,0.00582034]
[1772901110506,0.07525351,67776.0,67763.0,0.07398638]
[1772901110691,0.01942655,67775.0,67763.0,0.07398638]
[1772901110891,0.00695556,67774.0,67763.0,0.0002]
[1772901112881,0.07377569,67773.0,67763.0,0.0002]
[1772901113090,0.00695556,67772.0,67763.0,0.0002]
[1772901115008,0.07377786,67771.0,67763.0,0.0002]
[1772901116142,0.07377569,67773.0,67763.0,0.0002]
[1772901116143,0.00148,67780.0,67764.0,0.02650129]
[1772901116298,0.07376589,67782.0,67765.0,0.00568402]
[1772901116500,0.00148,67780.0,67765.0,0.00568402]
[1772901116675,0.00843556,67780.0,67765.0,0.00568402]
[1772901117333,0.00022001,67776.0,67766.0,0.07378331]
[1772901117546,0.00022001,67776.0,67767.0,0.00148]
[1772901120247,0.00022001,67776.0,67768.0,0.07378113]
[1772901120449,0.07399259,67776.0,67767.0,0.00148]
[1772901120648,0.08094815,67776.0,67767.0,0.00148]
[1772901120854,0.00695556,67775.0,67767.0,0.00148]
[1772901122069,0.00695556,67775.0,67763.0,0.00148]
[1772901122378,0.00638416,67773.0,67763.0,0.00148]
[1772901122588,0.00638416,67772.0,67763.0,0.00148]
[1772901124248,0.07377786,67771.0,67763.0,0.00148]
[1772901124802,0.14894323,67776.0,67764.0,0.07378549]
[1772901125005,0.07399252,67776.0,67765.0,0.00654224]
[1772901126404,0.07399252,67776.0,67766.0,0.07378331]
[1772901128500,0.00022001,67776.0,67767.0,0.00644354]
[1772901128702,0.14724322,67781.0,67768.0,0.01940705]
[1772901128879,0.19975526,67784.0,67769.0,0.00148]
[1772901129081,0.07398516,67783.0,67770.0,0.01940705]
[1772901129282,0.07398516,67783.0,67771.0,0.00644354]
[1772901130518,0.07398516,67783.0,67772.0,0.07377678]
[1772901131026,0.07419376,67783.0,67772.0,0.07377678]
[1772901131427,0.08081308,67783.0,67772.0,0.07377678]
[1772901131669,0.00661932,67782.0,67770.0,0.07377879]
[1772901131983,0.00682792,67782.0,67770.0,0.07377879]
[1772901132976,0.07376698,67781.0,67770.0,0.07377879]
[1772901133380,0.08059387,67782.0,67770.0,0.07377879]
[1772901133582,0.0002086,67782.0,67770.0,0.08017651]
[1772901133781,0.0002086,67782.0,67771.0,0.00639772]
[1772901134368,0.00042861,67782.0,67771.0,0.00639772]
[1772901134772,0.0001235,67786.0,67771.0,0.01940705]
[1772901134950,0.0001235,67786.0,67773.0,0.00637355]
[1772901136588,0.00022001,67789.0,67775.0,0.00651763]
[1772901136765,0.00022001,67789.0,67777.0,0.00651763]
[1772901136974,0.00022001,67789.0,67779.0,0.00651763]
[1772901136975,0.00015,67780.0,67779.0,0.00651763]
[1772901137174,0.00022001,67789.0,67779.0,0.00651763]
[1772901137623,0.00022001,67790.0,67780.0,0.00651763]
[1772901137792,0.07397608,67793.0,67780.0,0.00651763]
[1772901137793,0.00022001,67793.0,67780.0,0.00651763]
[1772901137979,0.00022001,67793.0,67782.0,0.00651763]
[1772901138175,0.00022001,67793.0,67784.0,0.00651763]
[1772901139213,0.00022001,67796.0,67785.0,0.07376263]
[1772901139422,0.00034031,67796.0,67785.0,0.07376263]
[1772901140831,0.00022001,67786.0,67785.0,0.07376263]
[1772901141248,0.00022001,67786.0,67784.0,0.07376315]
[1772901141849,0.00034031,67796.0,67785.0,0.00647104]
[1772901142071,0.00062001,67800.0,67785.0,0.00647104]
[1772901142072,0.00062001,67800.0,67786.0,0.00647104]
[1772901142278,0.00062001,67800.0,67786.0,0.00687226]
[1772901142833,0.02078654,67804.0,67786.0,0.00687226]
[1772901142834,0.00022001,67804.0,67788.0,0.00644673]
[1772901143032,0.00022001,67807.0,67792.0,0.00644673]
[1772901143362,0.00022001,67807.0,67795.0,0.00644673]
[1772901143560,0.00022001,67807.0,67797.0,0.00642523]
[1772901146181,0.00022001,67807.0,67798.0,0.07374848]
[1772901152479,0.00022001,67807.0,67797.0,0.07374848]
[1772901152668,0.00661932,67804.0,67787.0,0.07376045]
[1772901152863,0.01958264,67801.0,67787.0,0.07376045]
[1772901153036,0.01958264,67797.0,67787.0,0.07376045]
[1772901153240,0.02620196,67796.0,67788.0,0.00148]
[1772901153463,0.02620196,67796.0,67787.0,0.07376045]
[1772901153464,0.00661932,67796.0,67787.0,0.07376045]
[1772901153631,0.01958264,67793.0,67788.0,0.00148]
[1772901153830,0.00661932,67791.0,67789.0,0.00148]
[1772901154055,0.01958264,67790.0,67789.0,0.00148]
[1772901154376,0.01958264,67790.0,67786.0,0.0741623]
[1772901154624,0.01958264,67790.0,67786.0,0.00040122]
[1772901154783,0.01958264,67790.0,67787.0,0.00148]
[1772901154995,0.01958264,67798.0,67787.0,0.00148]
[1772901155403,0.01958264,67798.0,67788.0,0.00148]
[1772901156316,0.07395889,67807.0,67789.0,0.00618211]
[1772901156490,0.09354153,67807.0,67791.0,0.00615858]
[1772901157931,0.10016085,67807.0,67791.0,0.00615858]
[1772901158549,0.10016085,67807.0,67792.0,0.07375501]
[1772901160282,0.00022001,67807.0,67793.0,0.00608791]
[1772901160435,0.07395873,67807.0,67795.0,0.00606465]